fUST/lending_fUST_20241231
["ID","MTS","AMOUNT","RATE_DAILY","PERIOD"]
[347233075,1735603843335,-500.0,0.00020273,2]
[347233077,1735603843347,-500.0,0.00020273,2]
[347233079,1735603843357,-499.0,0.00020273,2]
[347233081,1735603843368,-378.12,0.000203,2]
[347233083,1735603843378,-221.31825405,0.000204,2]
[347233128,1735603846652,-165.1157644,0.00019679,2]
[347233129,1735603846661,-165.1157644,0.00019878,2]
[347233130,1735603846671,-500.0,0.00020252,3]
[347233131,1735603846681,-467.94138661,0.000204,2]
[347233132,1735603846690,-198.885826,0.00020447,2]
[347233133,1735603846700,-500.0,0.00020473,2]
[347233135,1735603846709,-500.0,0.00020473,2]
[347233136,1735603846719,-135316.32433137,0.000205,5]
[347233138,1735603846730,-151.0,0.000205,2]
[347233139,1735603846739,-151.0,0.000205,2]
[347233140,1735603846748,-151.0,0.000205,2]
[347233141,1735603846758,-151.0,0.000205,2]
[347233142,1735603846767,-151.0,0.000205,2]
[347233143,1735603846776,-151.0,0.000205,2]
[347233144,1735603846786,-157.564822,0.00020521,2]
[347233145,1735603846795,-1042.36,0.00020525,3]
[347233146,1735603846804,-500.0,0.00020525,3]
[347233147,1735603846814,-564.69,0.00020525,3]
[347233148,1735603846823,-500.0,0.00020525,3]
[347233149,1735603846832,-175.2,0.00020525,3]
[347233150,1735603846841,-500.0,0.00020526,3]
[347233151,1735603846851,-500.0,0.00020526,3]
[347233152,1735603846860,-500.0,0.00020526,3]
[347233153,1735603846868,-500.0,0.00020526,3]
[347233154,1735603846877,-500.0,0.00020526,3]
[347233155,1735603846887,-200.0,0.00020526,3]
[347233156,1735603846914,-526.86,0.00020526,3]
[347233157,1735603846924,-539.54,0.00020526,3]
[347233158,1735603846933,-500.0,0.00020526,3]
[347233159,1735603846943,-558.0703212,0.00020526,3]
[347233160,1735603846952,-500.0,0.00020526,3]
[347233161,1735603846961,-680.92,0.00020526,3]
[347233162,1735603846970,-500.0,0.00020526,3]
[347233163,1735603846979,-699.75,0.00020526,3]
[347233164,1735603846989,-589.31,0.00020526,3]
[347233165,1735603846998,-676.76,0.00020526,3]
[347233166,1735603847007,-500.0,0.00020526,3]
[347233167,1735603847016,-505.89,0.00020526,3]
[347233168,1735603847025,-1890.52,0.00020526,3]
[347233169,1735603847035,-500.0,0.00020526,3]
[347233170,1735603847044,-500.0,0.00020526,3]
[347233171,1735603847053,-500.0,0.00020526,3]
[347233172,1735603847062,-500.0,0.00020526,3]
[347233173,1735603847071,-500.0,0.00020526,3]
[347233174,1735603847080,-500.0,0.00020526,3]
[347233175,1735603847089,-500.0,0.00020526,3]
[347233176,1735603847099,-500.0,0.00020526,3]
[347233177,1735603847109,-500.0,0.00020526,3]
[347233178,1735603847119,-500.0,0.00020526,3]
[347233179,1735603847128,-500.0,0.00020526,3]
[347233180,1735603847137,-500.0,0.00020526,3]
[347233181,1735603847147,-785.79,0.00020526,3]
[347233182,1735603847156,-11582.54,0.00020526,3]
[347233183,1735603847165,-524.51,0.00020526,3]
[347233184,1735603847175,-632.79,0.00020526,3]
[347233185,1735603847184,-500.0,0.00020526,3]
[347233186,1735603847193,-625.7,0.00020526,3]
[347233187,1735603847203,-500.0,0.00020526,3]
[347233188,1735603847213,-500.0,0.00020526,3]
[347233189,1735603847226,-809.84,0.00020526,3]
[347233190,1735603847236,-1055.88,0.00020526,3]
[347233191,1735603847245,-500.0,0.00020526,3]
[347233192,1735603847255,-500.0,0.00020527,3]
[347233193,1735603847265,-500.0,0.00020527,3]
[347233194,1735603847274,-289.38616148,0.00020527,3]
[347233195,1735603847355,-210.61383852,0.00020527,3]
[347233196,1735603847364,-500.0,0.00020527,3]
[347233197,1735603847373,-500.0,0.00020527,3]
[347233198,1735603847383,-500.0,0.00020527,3]
[347233199,1735603847392,-576.74,0.00020527,3]
[347233200,1735603847402,-553.68,0.00020527,3]
[347233201,1735603847410,-500.0,0.00020527,3]
[347233202,1735603847420,-500.0,0.00020527,3]
[347233203,1735603847430,-500.0,0.00020527,3]
[347233204,1735603847439,-500.0,0.00020527,3]
[347233205,1735603847448,-231.73125724,0.00020527,3]
[347233206,1735603847464,-289.90874276,0.00020527,3]
[347233207,1735603847473,-500.0,0.00020527,3]
[347233208,1735603847482,-146.39134724,0.00020527,3]
[347233209,1735603847494,-353.60865276,0.00020527,3]
[347233210,1735603847504,-500.0,0.00020527,3]
[347233211,1735603847513,-540.59,0.00020527,3]
[347233212,1735603847521,-500.0,0.00020527,3]
[347233213,1735603847530,-667.09,0.00020527,3]
[347233214,1735603847539,-487.98438663,0.00020527,3]
[347233215,1735603891976,160.0,0.00024434,120]
[347233216,1735604071332,160.0,0.00024719,120]
[347233218,1735604251367,160.0,0.00024001,120]
[347233219,1735604311917,160.0,0.00023545,120]
[347233220,1735604367008,115626.26943536,0.00021024,90]
[347233221,1735604431880,160.0,0.0002367,120]
[347233228,1735604920301,1893.79788125,0.0002,120]
[347233229,1735604920323,4046.5178858,0.0002,120]
[347233230,1735604920350,4425.39413295,0.0002,120]
[347233231,1735604968120,-178.997243,0.00012893,2]
[347233232,1735604968142,-81.50409701,0.00013973,2]
[347233259,1735605034660,-178.997243,0.00012636,2]
[347233260,1735605034670,-178.997243,0.00012764,2]
[347233261,1735605034679,-174.922038,0.00013973,2]
[347233263,1735605034688,-168.039539,0.00019178,2]
[347233264,1735605034698,-165.1157644,0.00019877,2]
[347233265,1735605034707,-151.84758342,0.000199,2]
[347233266,1735605034717,-572.622,0.0001996,2]
[347233267,1735605034726,-500.0,0.00019973,2]
[347233268,1735605034736,-500.0,0.00019973,2]
[347233269,1735605034746,-500.0,0.00019973,2]
[347233270,1735605034755,-300.0,0.00019975,2]
[347233271,1735605034764,-152.76,0.00019976,2]
[347233272,1735605034774,-500.0,0.00019976,3]
[347233273,1735605034783,-337.5483582,0.00019976,3]
[347233274,1735605034792,-500.0,0.00019976,3]
[347233275,1735605034801,-500.0,0.00019976,3]
[347233276,1735605034811,-500.0,0.00019976,3]
[347233277,1735605034820,-500.0,0.00019976,3]
[347233278,1735605034829,-500.0,0.00019976,3]
[347233279,1735605034838,-500.0,0.00019976,3]
[347233280,1735605034848,-642.62,0.00019976,3]
[347233281,1735605034857,-500.0,0.00019976,3]
[347233282,1735605034867,-500.0,0.00019976,3]
[347233283,1735605034876,-896.11,0.00019976,3]
[347233284,1735605034886,-1276.01,0.00019976,3]
[347233285,1735605034895,-500.0,0.00019976,3]
[347233286,1735605034904,-500.0,0.00019976,3]
[347233287,1735605034913,-799.56,0.00019976,3]
[347233288,1735605034922,-500.0,0.00019976,3]
[347233289,1735605034931,-653.95,0.00019976,3]
[347233290,1735605034940,-767.47,0.00019976,3]
[347233291,1735605034949,-500.0,0.00019976,3]
[347233292,1735605034964,-500.0,0.00019976,3]
[347233293,1735605034977,-500.0,0.00019976,3]
[347233294,1735605034990,-500.0,0.00019976,3]
[347233295,1735605035001,-500.0,0.00019976,3]
[347233296,1735605035012,-531.94,0.00019976,3]
[347233297,1735605035026,-500.0,0.00019976,3]
[347233298,1735605035039,-2176.34,0.00019976,3]
[347233299,1735605035051,-500.0,0.00019976,3]
[347233300,1735605035063,-500.0,0.00019976,3]
[347233301,1735605035076,-571.37,0.00019976,3]
[347233302,1735605035088,-500.0,0.00019976,3]
[347233303,1735605035100,-500.0,0.00019976,3]
[347233304,1735605035115,-2380.31802365,0.00019976,3]
[347233305,1735605035131,-8297.81197635,0.00019976,3]
[347233306,1735605035144,-927.07,0.00019976,3]
[347233307,1735605035156,-1137.39,0.00019976,3]
[347233308,1735605035167,-397.46325957,0.00019976,3]
[347233309,1735605035179,-500.0,0.00019976,3]
[347233310,1735605035192,-646.44,0.00019976,3]
[347233311,1735605035204,-372.39848531,0.00019976,3]
[347233312,1735605035215,-619.1,0.00019976,3]
[347233313,1735605035228,-500.0,0.00019976,3]
[347233314,1735605035238,-500.0,0.00019976,3]
[347233315,1735605035248,-685.88,0.00019976,3]
[347233316,1735605035260,-500.0,0.00019976,3]
[347233317,1735605035271,-500.0,0.00019976,3]
[347233318,1735605035284,-500.0,0.00019976,3]
[347233319,1735605035295,-500.0,0.00019977,3]
[347233320,1735605035308,-500.0,0.00019977,3]
[347233321,1735605035322,-200.0,0.00019977,3]
[347233322,1735605035334,-500.0,0.00019977,3]
[347233323,1735605035346,-500.0,0.00019977,3]
[347233324,1735605035359,-197.62874935,0.00019977,3]
[347233325,1735605035370,-500.0,0.00019977,3]
[347233326,1735605035380,-500.0,0.00019977,3]
[347233327,1735605035390,-500.0,0.00019977,3]
[347233328,1735605035400,-500.0,0.00019977,3]
[347233329,1735605035412,-500.0,0.00019977,3]
[347233330,1735605035425,-500.0,0.00019977,3]
[347233331,1735605035437,-500.0,0.00019977,3]
[347233332,1735605035449,-500.0,0.00019977,3]
[347233333,1735605035459,-508.64858031,0.00019977,3]
[347233334,1735605035470,-500.0,0.00019977,3]
[347233335,1735605035481,-270.35173352,0.00019977,3]
[347233336,1735605035493,-500.0,0.00019977,3]
[347233337,1735605035505,-500.0,0.00019977,3]
[347233338,1735605035516,-500.0,0.00019977,3]
[347233339,1735605035526,-500.0,0.00019977,3]
[347233340,1735605035537,-500.0,0.00019977,3]
[347233341,1735605035547,-594.59031257,0.00019977,3]
[347233342,1735605035561,-500.0,0.00019977,3]
[347233343,1735605035573,-692.14,0.00019977,3]
[347233344,1735605035583,-238.50096295,0.00019977,3]
[347233376,1735605037787,-343.66038789,0.00019976,3]
[347233379,1735605037799,-433.60613764,0.00019976,3]
[347233381,1735605037811,-3103.01845059,0.00019976,3]
[347233383,1735605037840,-8485.13768142,0.00019976,3]
[347233385,1735605037867,-526.32057188,0.00019976,3]
[347233441,1735605042880,-500.0,0.00019777,2]
[347233443,1735605042890,-145.0542129,0.00019976,3]
[347233445,1735605042902,-2824.74667233,0.00019976,3]
[347233446,1735605043033,-1324.77241088,0.00019976,3]
[347233447,1735605043043,-223.49963362,0.00019976,3]
[347233448,1735605043055,-635.28036638,0.00019976,3]
[347233449,1735605043064,-268.95411973,0.00019977,3]
[347233469,1735605045813,-117.6701274,0.00019977,3]
[347233470,1735605045822,-500.0,0.00019977,3]
[347233471,1735605045831,-500.0,0.00019977,3]
[347233472,1735605045841,-500.0,0.00019977,3]
[347233473,1735605045849,-500.0,0.00019977,3]
[347233474,1735605045858,-671.97,0.00019977,3]
[347233475,1735605045867,-500.0,0.00019977,3]
[347233476,1735605045876,-500.0,0.00019977,3]
[347233477,1735605045886,-500.0,0.00019977,3]
[347233478,1735605045896,-584.9175672,0.00019977,3]
[347233479,1735605045905,-295.72456444,0.00019977,3]
[347233480,1735605045913,-500.0,0.00019977,3]
[347233481,1735605045922,-500.0,0.00019977,3]
[347233482,1735605045932,-500.0,0.00019977,3]
[347233483,1735605045941,-500.0,0.00019977,3]
[347233484,1735605045950,-500.0,0.00019977,3]
[347233485,1735605045959,-500.0,0.00019977,3]
[347233486,1735605045968,-500.0,0.00019977,3]
[347233488,1735605045977,-500.0,0.00019977,3]
[347233489,1735605045986,-501.69117398,0.00019977,3]
[347233491,1735605045995,-500.0,0.00019977,3]
[347233492,1735605046004,-500.0,0.00019977,3]
[347233494,1735605046014,-500.0,0.00019977,3]
[347233495,1735605046023,-500.0,0.00019977,3]
[347233496,1735605046032,-500.0,0.00019977,3]
[347233498,1735605046042,-500.0,0.00019977,3]
[347233500,1735605046051,-500.0,0.00019977,3]
[347233501,1735605046060,-500.0,0.00019977,3]
[347233503,1735605046069,-500.0,0.00019977,3]
[347233505,1735605046078,-500.0,0.00019977,3]
[347233506,1735605046088,-500.0,0.00019977,3]
[347233507,1735605046098,-500.0,0.00019977,3]
[347233508,1735605046108,-500.0,0.00019977,3]
[347233509,1735605046117,-500.0,0.00019977,3]
[347233510,1735605046127,-500.0,0.00019977,3]
[347233511,1735605046137,-500.0,0.00019977,3]
[347233513,1735605046146,-500.0,0.00019977,3]
[347233514,1735605046156,-500.0,0.00019977,3]
[347233515,1735605046165,-771.2,0.00019977,3]
[347233516,1735605046176,-500.0,0.00019977,3]
[347233517,1735605046185,-500.0,0.00019977,3]
[347233518,1735605046194,-500.0,0.00019977,3]
[347233519,1735605046203,-500.0,0.00019977,3]
[347233520,1735605046212,-500.0,0.00019977,3]
[347233521,1735605046222,-500.0,0.00019977,3]
[347233522,1735605046234,-500.0,0.00019977,3]
[347233523,1735605046243,-500.0,0.00019977,3]
[347233524,1735605046252,-500.0,0.00019977,3]
[347233525,1735605046261,-500.0,0.00019977,3]
[347233526,1735605046271,-320.84200167,0.00019977,3]
[347233527,1735605046280,-500.0,0.00019977,3]
[347233528,1735605046289,-500.0,0.00019977,3]
[347233529,1735605046299,-500.0,0.00019977,3]
[347233530,1735605046308,-1615.84,0.00019977,3]
[347233531,1735605046317,-500.0,0.00019977,3]
[347233532,1735605046325,-500.0,0.00019977,3]
[347233533,1735605046334,-501.51882356,0.00019977,3]
[347233534,1735605046344,-500.0,0.00019977,2]
[347233535,1735605046353,-500.0,0.00019977,3]
[347233536,1735605046362,-500.0,0.00019977,3]
[347233537,1735605046371,-500.0,0.00019977,3]
[347233538,1735605046380,-500.0,0.00019977,3]
[347233539,1735605046390,-500.0,0.00019977,3]
[347233540,1735605046398,-500.0,0.00019977,3]
[347233541,1735605046407,-500.0,0.00019977,3]
[347233542,1735605046416,-500.0,0.00019977,3]
[347233543,1735605046426,-500.0,0.00019977,3]
[347233544,1735605046436,-578.53219428,0.00019977,3]
[347233545,1735605046445,-500.0,0.00019977,3]
[347233546,1735605046454,-500.0,0.00019977,3]
[347233547,1735605046463,-500.0,0.00019977,3]
[347233548,1735605046472,-500.0,0.00019977,3]
[347233549,1735605046481,-500.0,0.00019977,3]
[347233550,1735605046491,-500.0,0.00019977,3]
[347233551,1735605046499,-500.0,0.00019977,3]
[347233552,1735605046509,-513.11,0.00019977,3]
[347233553,1735605046518,-500.0,0.00019977,3]
[347233554,1735605046527,-513.11,0.00019977,3]
[347233555,1735605046536,-513.11,0.00019977,3]
[347233556,1735605046545,-513.11,0.00019977,3]
[347233557,1735605046554,-745.57,0.00019977,3]
[347233558,1735605046568,-500.0,0.00019977,3]
[347233559,1735605046577,-500.0,0.00019977,3]
[347233560,1735605046587,-500.0,0.00019977,3]
[347233561,1735605046596,-500.0,0.00019977,3]
[347233562,1735605046606,-500.0,0.00019977,3]
[347233563,1735605046616,-500.0,0.00019977,3]
[347233564,1735605046625,-500.0,0.00019977,3]
[347233565,1735605046636,-500.0,0.00019977,3]
[347233566,1735605046645,-500.0,0.00019977,3]
[347233567,1735605046654,-525.14523659,0.00019977,3]
[347233568,1735605046663,-500.0,0.00019977,3]
[347233569,1735605046672,-152.69044545,0.00019978,3]
[347233570,1735605046681,-500.0,0.00019978,3]
[347233571,1735605046690,-500.0,0.00019978,3]
[347233572,1735605046699,-500.0,0.00019978,3]
[347233573,1735605046708,-500.0,0.00019978,3]
[347233574,1735605046717,-500.0,0.00019978,3]
[347233575,1735605046726,-500.0,0.00019978,3]
[347233576,1735605046735,-500.0,0.00019978,3]
[347233577,1735605046744,-500.0,0.00019978,3]
[347233578,1735605046753,-500.0,0.00019978,3]
[347233579,1735605046762,-500.77906794,0.00019978,3]
[347233580,1735605046771,-503.53139964,0.00019978,3]
[347233581,1735605046780,-500.0,0.00019978,3]
[347233582,1735605046789,-500.0,0.00019978,3]
[347233583,1735605046798,-500.0,0.00019978,3]
[347233584,1735605046807,-500.0,0.00019978,3]
[347233585,1735605046816,-500.0,0.00019978,3]
[347233586,1735605046825,-399.46238874,0.00019978,3]
[347233587,1735605046834,-500.0,0.00019978,3]
[347233588,1735605046843,-500.0,0.00019978,3]
[347233589,1735605046852,-500.0,0.00019978,3]
[347233590,1735605046862,-500.0,0.00019978,3]
[347233591,1735605046871,-500.0,0.00019978,3]
[347233592,1735605046880,-500.0,0.00019978,3]
[347233593,1735605046889,-500.0,0.00019978,3]
[347233594,1735605046898,-500.0,0.00019978,3]
[347233595,1735605046907,-500.0,0.00019978,3]
[347233596,1735605046917,-503.0149452,0.00019978,3]
[347233597,1735605046926,-500.0,0.00019978,3]
[347233598,1735605046935,-500.0,0.00019978,3]
[347233599,1735605046945,-280.77760564,0.00019978,3]
[347233600,1735605046954,-500.0,0.00019978,3]
[347233601,1735605046963,-500.0,0.00019978,3]
[347233602,1735605046972,-500.0,0.00019978,3]
[347233603,1735605046981,-500.0,0.00019978,3]
[347233604,1735605046990,-500.0,0.00019978,3]
[347233605,1735605047000,-500.0,0.00019978,3]
[347233606,1735605047009,-500.0,0.00019978,3]
[347233607,1735605047018,-500.0,0.00019978,3]
[347233608,1735605047027,-500.0,0.00019978,3]
[347233609,1735605047036,-500.0,0.00019978,3]
[347233610,1735605047046,-500.0,0.00019978,3]
[347233611,1735605047055,-500.0,0.00019978,3]
[347233612,1735605047064,-500.0,0.00019978,3]
[347233613,1735605047073,-500.0,0.00019978,3]
[347233614,1735605047082,-500.0,0.00019978,3]
[347233615,1735605047092,-500.0,0.00019978,3]
[347233616,1735605047101,-500.0,0.00019978,3]
[347233617,1735605047110,-500.0,0.00019978,3]
[347233618,1735605047119,-482.2687436,0.00019978,3]
[347233619,1735605047128,-500.0,0.00019978,3]
[347233620,1735605047138,-500.0,0.00019978,3]
[347233621,1735605047147,-500.0,0.00019978,3]
[347233622,1735605047157,-500.0,0.00019979,3]
[347233623,1735605047167,-500.0,0.0001998,3]
[347233624,1735605047176,-3674.29,0.0001998,3]
[347233625,1735605047186,-500.0,0.0001998,3]
[347233626,1735605047195,-500.0,0.0001998,3]
[347233627,1735605047204,-500.0,0.0001998,3]
[347233628,1735605047213,-500.0,0.0001998,3]
[347233629,1735605047222,-2687.56,0.00019981,3]
[347233630,1735605047316,-10460.77370648,0.00020002,2]
[347233631,1735605047326,-997.20367244,0.0002015,2]
[347233632,1735605047336,-500.0,0.00020159,3]
[347233633,1735605047346,-303.8781763,0.00020192,2]
[347233634,1735605047355,-177.227898,0.00020192,2]
[347233635,1735605047365,-500.0,0.0002025,3]
[347233636,1735605047374,-500.0,0.0002025,3]
[347233637,1735605047385,-500.0,0.0002025,3]
[347233638,1735605047394,-500.0,0.0002025,3]
[347233639,1735605047404,-500.0,0.0002025,3]
[347233640,1735605047413,-500.0,0.0002025,3]
[347233641,1735605047422,-500.0,0.0002025,3]
[347233642,1735605047431,-642.62,0.0002025,3]
[347233643,1735605047441,-500.0,0.0002025,3]
[347233644,1735605047451,-1276.01,0.0002025,3]
[347233645,1735605047460,-500.0,0.0002025,3]
[347233646,1735605047470,-500.0,0.0002025,3]
[347233647,1735605047479,-799.56,0.0002025,3]
[347233648,1735605047491,-500.0,0.0002025,3]
[347233649,1735605047500,-653.95,0.0002025,3]
[347233650,1735605047513,-767.47,0.0002025,3]
[347233651,1735605047523,-500.0,0.0002025,3]
[347233652,1735605047533,-500.0,0.0002025,3]
[347233653,1735605047542,-500.0,0.0002025,3]
[347233654,1735605047551,-500.0,0.0002025,3]
[347233655,1735605047563,-531.94,0.0002025,3]
[347233656,1735605047573,-500.0,0.0002025,3]
[347233657,1735605047582,-2176.34,0.0002025,3]
[347233658,1735605047591,-500.0,0.0002025,3]
[347233659,1735605047600,-500.0,0.0002025,3]
[347233660,1735605047610,-571.37,0.0002025,3]
[347233661,1735605047619,-500.0,0.0002025,3]
[347233662,1735605047628,-500.0,0.0002025,3]
[347233663,1735605047637,-10678.13,0.0002025,3]
[347233664,1735605047647,-513.11,0.0002025,3]
[347233665,1735605047657,-927.07,0.0002025,3]
[347233666,1735605047666,-1137.39,0.0002025,3]
[347233667,1735605047675,-646.44,0.0002025,3]
[347233668,1735605047684,-619.1,0.0002025,3]
[347233669,1735605047693,-500.0,0.0002025,3]
[347233670,1735605047702,-500.0,0.0002025,3]
[347233671,1735605047712,-685.88,0.0002025,3]
[347233672,1735605047722,-500.0,0.0002025,3]
[347233673,1735605047731,-500.0,0.0002025,3]
[347233674,1735605047740,-16409.05,0.0002025,3]
[347233675,1735605047750,-858.78,0.0002025,3]
[347233676,1735605047759,-500.0,0.00020251,3]
[347233677,1735605047768,-200.0,0.00020251,3]
[347233678,1735605047777,-500.0,0.00020251,3]
[347233679,1735605047787,-500.0,0.00020251,3]
[347233680,1735605047796,-500.0,0.00020251,3]
[347233681,1735605047805,-500.0,0.00020251,3]
[347233682,1735605047814,-500.0,0.00020251,3]
[347233683,1735605047823,-500.0,0.00020251,3]
[347233684,1735605047833,-230.22,0.00020251,3]
[347233685,1735605047842,-500.0,0.00020251,3]
[347233686,1735605047851,-500.0,0.00020251,3]
[347233687,1735605047860,-500.0,0.00020251,3]
[347233688,1735605047869,-692.14,0.00020251,3]
[347233689,1735605047878,-293.03,0.00020251,3]
[347233690,1735605047887,-500.0,0.00020251,3]
[347233691,1735605047896,-500.0,0.00020251,3]
[347233692,1735605047905,-500.0,0.00020251,3]
[347233693,1735605047914,-671.97,0.00020251,3]
[347233694,1735605047923,-500.0,0.00020251,3]
[347233695,1735605047932,-500.0,0.00020251,3]
[347233696,1735605047941,-500.0,0.00020251,3]
[347233697,1735605047951,-500.0,0.00020251,3]
[347233698,1735605047960,-500.0,0.00020251,3]
[347233699,1735605047969,-500.0,0.00020251,3]
[347233700,1735605047978,-500.0,0.00020251,3]
[347233701,1735605047987,-500.0,0.00020251,3]
[347233702,1735605047996,-500.0,0.00020251,3]
[347233703,1735605048011,-505.25555965,0.00020251,3]
[347233704,1735605048020,-500.0,0.00020251,3]
[347233705,1735605048030,-500.0,0.00020251,3]
[347233706,1735605048040,-500.0,0.00020251,3]
[347233707,1735605048049,-500.0,0.00020251,3]
[347233708,1735605048058,-771.2,0.00020251,3]
[347233709,1735605048067,-500.0,0.00020251,3]
[347233710,1735605048077,-500.0,0.00020251,3]
[347233711,1735605048087,-500.0,0.00020251,3]
[347233712,1735605048097,-500.0,0.00020251,3]
[347233713,1735605048106,-500.0,0.00020251,3]
[347233714,1735605048116,-245.25,0.00020251,3]
[347233715,1735605048125,-559.57448212,0.00020251,3]
[347233716,1735605048134,-500.0,0.00020251,3]
[347233717,1735605048143,-500.0,0.00020251,3]
[347233718,1735605048155,-500.0,0.00020251,3]
[347233719,1735605048164,-1615.84,0.00020251,3]
[347233720,1735605048173,-503.03649116,0.00020251,3]
[347233721,1735605048182,-500.0,0.00020251,3]
[347233722,1735605048192,-439.3,0.00020251,3]
[347233723,1735605048201,-157.67,0.00020251,3]
[347233724,1735605048209,-500.0,0.00020251,3]
[347233725,1735605048218,-500.0,0.00020251,3]
[347233726,1735605048228,-500.0,0.00020251,3]
[347233727,1735605048237,-500.0,0.00020251,3]
[347233728,1735605048246,-500.0,0.00020251,3]
[347233729,1735605048255,-500.0,0.00020251,3]
[347233730,1735605048265,-500.0,0.00020251,3]
[347233731,1735605048274,-500.0,0.00020251,3]
[347233732,1735605048283,-745.57,0.00020251,3]
[347233733,1735605048293,-513.11,0.00020251,3]
[347233734,1735605048302,-513.11,0.00020251,3]
[347233735,1735605048311,-500.0,0.00020251,3]
[347233736,1735605048321,-500.0,0.00020251,3]
[347233737,1735605048330,-500.0,0.00020251,3]
[347233738,1735605048340,-500.0,0.00020251,3]
[347233739,1735605048349,-500.0,0.00020251,3]
[347233740,1735605048358,-500.0,0.00020251,3]
[347233741,1735605048368,-500.0,0.00020252,3]
[347233742,1735605048377,-500.0,0.00020252,3]
[347233743,1735605048387,-500.0,0.00020252,3]
[347233744,1735605048396,-500.0,0.00020252,3]
[347233745,1735605048408,-500.0,0.00020252,3]
[347233746,1735605048418,-500.0,0.00020252,3]
[347233747,1735605048428,-500.0,0.00020252,3]
[347233748,1735605048437,-500.0,0.00020252,3]
[347233749,1735605048447,-500.0,0.00020252,3]
[347233750,1735605048456,-500.0,0.00020252,3]
[347233751,1735605048465,-500.0,0.00020252,3]
[347233752,1735605048474,-500.0,0.00020252,3]
[347233753,1735605048484,-500.0,0.00020252,3]
[347233754,1735605048494,-500.0,0.00020252,3]
[347233755,1735605048503,-283.67510786,0.00020252,3]
[347233756,1735605048512,-500.0,0.00020252,3]
[347233757,1735605048522,-500.0,0.00020252,3]
[347233758,1735605048532,-500.0,0.00020252,3]
[347233759,1735605048542,-526.22,0.00020252,3]
[347233760,1735605048551,-500.0,0.00020252,3]
[347233761,1735605048563,-500.0,0.00020252,3]
[347233762,1735605048573,-500.0,0.00020252,3]
[347233763,1735605048582,-500.0,0.00020252,3]
[347233764,1735605048592,-500.0,0.00020252,3]
[347233765,1735605048601,-500.0,0.00020252,3]
[347233766,1735605048611,-500.0,0.00020252,3]
[347233767,1735605048621,-500.0,0.00020252,3]
[347233768,1735605048630,-500.0,0.00020252,3]
[347233769,1735605048641,-513.11,0.00020252,3]
[347233770,1735605048654,-152.76,0.00020253,2]
[347233771,1735605048663,-500.0,0.00020253,3]
[347233772,1735605048673,-3674.29,0.00020254,3]
[347233773,1735605048682,-500.0,0.00020254,3]
[347233774,1735605048692,-500.0,0.00020254,3]
[347233775,1735605048701,-533.56,0.00020254,3]
[347233776,1735605048712,-2687.56,0.00020255,3]
[347233777,1735605048722,-500.0,0.00020273,2]
[347233778,1735605048733,-260.88767523,0.00020273,2]